fUSD/lending_fUSD_20250106
["ID","MTS","AMOUNT","RATE_DAILY","PERIOD"]
[347879324,1736178647972,-152.38928473,0.000109,2]
[347879326,1736178647981,-152.38928473,0.000109,2]
[347879328,1736178647990,-152.38928473,0.000109,2]
[347879330,1736178647999,-152.38928473,0.000109,2]
[347879332,1736178648009,-152.38928473,0.000109,2]
[347879334,1736178648019,-152.38928473,0.000109,2]
[347879336,1736178648028,-152.38928473,0.000109,2]
[347879338,1736178648040,-152.38928473,0.000109,2]
[347879340,1736178648051,-608.94923988,0.00010914,2]
[347879342,1736178648061,-475.61007784,0.00010916,2]
[347879345,1736178648071,-500.0,0.00010958,2]
[347879347,1736178648080,-313.0,0.00010986,2]
[347879348,1736178648090,-596.95,0.00010995,2]
[347879350,1736178648100,-404.56,0.00010995,2]
[347879353,1736178648109,-500.0,0.00010995,2]
[347879354,1736178648119,-500.0,0.00010995,2]
[347879356,1736178648128,-535.97,0.00010995,2]
[347879358,1736178648138,-1011.65,0.00010995,2]
[347879360,1736178648148,-500.0,0.00010995,2]
[347879362,1736178648157,-312.77058941,0.00010995,2]
[347879364,1736178648166,-652.92,0.00010995,2]
[347879367,1736178648179,-1464.07,0.00010995,2]
[347879368,1736178648189,-500.0,0.00010995,2]
[347879370,1736178648199,-772.4,0.00010995,2]
[347879372,1736178648210,-500.0,0.00010995,2]
[347879374,1736178648219,-217.54,0.00010995,2]
[347879376,1736178648229,-500.0,0.00010995,2]
[347879378,1736178648238,-468.12,0.00010995,2]
[347879380,1736178648247,-500.0,0.00010995,2]
[347879382,1736178648257,-500.0,0.00010995,2]
[347879384,1736178648266,-500.0,0.00010995,2]
[347879386,1736178648275,-500.0,0.00010995,2]
[347879388,1736178648285,-500.0,0.00010995,2]
[347879390,1736178648294,-550.0,0.00011,2]
[347879391,1736178648303,-5007.0,0.00011,2]
[347879393,1736178648313,-608.94923988,0.00011024,2]
[347879395,1736178648322,-150.0,0.00011047,2]
[347879397,1736178648331,-150.0,0.00011047,2]
[347879399,1736178648340,-150.0,0.00011047,2]
[347879401,1736178648350,-644.4,0.00011093,2]
[347879403,1736178648359,-1235.24,0.00011093,2]
[347879405,1736178648369,-500.0,0.00011093,2]
[347879407,1736178648378,-500.0,0.00011094,2]
[347879409,1736178648388,-500.0,0.00011094,2]
[347879430,1736178648566,-407.537472,0.00011094,2]
[347879432,1736178648576,-1305.15,0.00011094,2]
[347879434,1736178648586,-605.109896,0.00011094,2]
[347879436,1736178648596,-500.0,0.00011094,2]
[347879438,1736178648606,-990.35,0.00011094,2]
[347879440,1736178648617,-639.36,0.00011094,2]
[347879442,1736178648627,-500.0,0.00011094,2]
[347879444,1736178648637,-500.0,0.00011094,2]
[347879446,1736178648647,-1555.97,0.00011094,2]
[347879448,1736178648657,-2479.94,0.00011094,2]
[347879450,1736178648667,-500.0,0.00011095,2]
[347879452,1736178648676,-500.0,0.00011095,2]
[347879454,1736178648686,-500.0,0.00011095,2]
[347879456,1736178648696,-500.0,0.00011095,2]
[347879458,1736178648705,-500.0,0.00011095,2]
[347879460,1736178648715,-464.63650841,0.00011095,2]
[347879462,1736178648726,-500.0,0.00011095,2]
[347879464,1736178648735,-500.0,0.00011095,2]
[347879466,1736178648745,-314.67746694,0.00011095,2]
[347879468,1736178648754,-443.20774571,0.00011095,2]
[347879470,1736178648764,-500.0,0.00011095,2]
[347879472,1736178648777,-580.0,0.00011095,2]
[347879473,1736178648788,-500.0,0.00011095,2]
[347879474,1736178648797,-637.74,0.00011095,2]
[347879475,1736178648807,-500.0,0.00011095,2]
[347879476,1736178648817,-500.0,0.00011095,2]
[347879477,1736178648827,-599.71,0.00011095,2]
[347879478,1736178648837,-500.0,0.00011095,2]
[347879479,1736178648847,-343.57531086,0.00011095,2]
[347879481,1736178648857,-1922.29,0.00011095,2]
[347879483,1736178648867,-160.74,0.00011095,2]
[347879485,1736178648877,-806.17,0.00011095,2]
[347879487,1736178648888,-1340.16,0.00011095,2]
[347879489,1736178648897,-608.94923988,0.00011134,2]
[347879491,1736178648907,-4682.13705433,0.00011167,2]
[347879493,1736178648917,-500.0,0.00011167,2]
[347879495,1736178648927,-25248.23141216,0.00011168,2]
[347879497,1736178648936,-4682.13705433,0.00011169,2]
[347879499,1736178648946,-13633.97850839,0.00011169,2]
[347879501,1736178648955,-4682.13705433,0.00011169,2]
[347879503,1736178648965,-13633.97850839,0.00011171,2]
[347879505,1736178648975,-5275.44196854,0.00011172,2]
[347879507,1736178648984,-13633.97850839,0.00011172,2]
[347879509,1736178648994,-3590.96616522,0.00011172,2]
[347879511,1736178649003,-8849.39843631,0.00011172,2]
[347879513,1736178649013,-256.73267358,0.00011172,2]
[347879515,1736178649022,-453.74967741,0.00011173,2]
[347879517,1736178649031,-5275.44196854,0.00011173,2]
[347879519,1736178649043,-453.74967741,0.00011174,2]
[347879521,1736178649053,-110135.79180536,0.00011174,2]
[347879523,1736178649064,-110135.79180536,0.00011174,2]
[347879525,1736178649073,-256.73267358,0.00011175,2]
[347879527,1736178649083,-3590.96616522,0.00011175,2]
[347879529,1736178649092,-23633.37911657,0.00011176,2]
[347879531,1736178649102,-13633.97850839,0.00011176,2]
[347879533,1736178649111,-23633.37911657,0.00011176,2]
[347879535,1736178649121,-5275.44196854,0.00011176,2]
[347879537,1736178649131,-3590.96616522,0.00011177,2]
[347879539,1736178649140,-8849.39843631,0.00011177,2]
[347879541,1736178649150,-13633.97850839,0.00011177,2]
[347879543,1736178649160,-453.74967741,0.00011177,2]
[347879545,1736178649172,-110135.79180536,0.00011177,2]
[347879547,1736178649183,-500.0,0.00011178,2]
[347879549,1736178649193,-8849.39843631,0.00011178,2]
[347879551,1736178649203,-453.74967741,0.00011178,2]
[347879553,1736178649214,-453.74967741,0.00011178,2]
[347879555,1736178649224,-8849.39843631,0.00011179,2]
[347879557,1736178649234,-25248.23141216,0.0001118,2]
[347879559,1736178649244,-8849.39843631,0.0001118,2]
[347879561,1736178649254,-256.73267358,0.00011181,2]
[347879563,1736178649264,-41912.23025249,0.00011182,2]
[347879565,1736178649274,-23633.37911657,0.00011182,2]
[347879567,1736178649287,-25248.23141216,0.00011182,2]
[347879569,1736178649297,-256.73267358,0.00011182,2]
[347879571,1736178649307,-3590.96616522,0.00011183,2]
[347879573,1736178649317,-5275.44196854,0.00011183,2]
[347879575,1736178649326,-5275.44196854,0.00011183,2]
[347879577,1736178649336,-23633.37911657,0.00011183,2]
[347879579,1736178649345,-398741.85279446,0.00011183,2]
[347879581,1736178649354,-41912.23025249,0.00011185,2]
[347879583,1736178649364,-110135.79180536,0.00011185,2]
[347879585,1736178649374,-200.0,0.00011185,2]
[347879587,1736178649384,-256.73267358,0.00011187,2]
[347879589,1736178649396,-23633.37911657,0.00011187,2]
[347879591,1736178649405,-41912.23025249,0.00011189,2]
[347879593,1736178649415,-4682.13705433,0.00011189,2]
[347879595,1736178649424,-25248.23141216,0.00011189,2]
[347879597,1736178649435,-5275.44196854,0.00011189,2]
[347879599,1736178649444,-3590.96616522,0.0001119,2]
[347879601,1736178649454,-41912.23025249,0.0001119,2]
[347879603,1736178649464,-25248.23141216,0.0001119,2]
[347879605,1736178649474,-41912.23025249,0.0001119,2]
[347879607,1736178649483,-453.74967741,0.00011192,2]
[347879609,1736178649493,-4682.13705433,0.00011192,2]
[347879610,1736178649503,-398741.85279446,0.00011193,2]
[347879611,1736178649513,-398741.85279446,0.00011193,2]
[347879612,1736178649523,-110135.79180536,0.00011193,2]
[347879613,1736178649534,-398741.85279446,0.00011194,2]
[347879614,1736178649544,-3590.96616522,0.00011194,2]
[347879615,1736178649555,-256.73267358,0.00011194,2]
[347879616,1736178649565,-398741.85279446,0.00011195,2]
[347879617,1736178649575,-200.0,0.00011195,2]
[347879618,1736178649585,-13633.97850839,0.00011195,2]
[347879619,1736178649595,-200.0,0.00011197,2]
[347879620,1736178649604,-41912.23025249,0.00011197,2]
[347879621,1736178649614,-23633.37911657,0.00011197,2]
[347879622,1736178649624,-8849.39843631,0.00011198,2]
[347879623,1736178649633,-110135.79180536,0.00011198,2]
[347879624,1736178649643,-25248.23141216,0.00011199,2]
[347879626,1736178649653,-4682.13705433,0.00011199,2]
[347879628,1736178649664,-398741.85279446,0.00011199,2]
[347879630,1736178649674,-500.0,0.00011232,2]
[347879631,1736178649683,-608.94923988,0.00011245,2]
[347879633,1736178649692,-596.95,0.00011269,2]
[347879635,1736178649701,-500.0,0.00011269,2]
[347879637,1736178649711,-500.0,0.00011269,2]
[347879639,1736178649719,-535.97,0.00011269,2]
[347879641,1736178649729,-1011.65,0.00011269,2]
[347879643,1736178649738,-500.0,0.00011269,2]
[347879645,1736178649748,-652.92,0.00011269,2]
[347879646,1736178649759,-1464.07,0.00011269,2]
[347879647,1736178649769,-500.0,0.00011269,2]
[347879648,1736178649783,-772.4,0.00011269,2]
[347879649,1736178649793,-500.0,0.00011269,2]
[347879650,1736178649802,-500.0,0.00011269,2]
[347879651,1736178649812,-368.04,0.00011269,2]
[347879652,1736178649823,-631.59,0.00011269,2]
[347879653,1736178649833,-199.30097114,0.00011269,2]
[347879654,1736178649843,-500.0,0.00011269,2]
[347879655,1736178649853,-500.0,0.00011269,2]
[347879656,1736178649862,-182.0,0.00011344,2]
[347879657,1736178649872,-164.66,0.00011344,2]
[347879658,1736178649881,-608.94923988,0.00011355,2]
[347879659,1736178649891,-644.4,0.00011367,2]
[347879660,1736178649900,-1235.24,0.00011367,2]
[347879661,1736178649909,-500.0,0.00011367,2]
[347879662,1736178649918,-500.0,0.00011368,2]
[347879663,1736178649928,-284.42,0.00011368,2]
[347879664,1736178649938,-407.537472,0.00011368,2]
[347879665,1736178649947,-1305.15,0.00011368,2]
[347879666,1736178649957,-605.109896,0.00011368,2]
[347879667,1736178649966,-500.0,0.00011368,2]
[347879668,1736178649976,-990.35,0.00011368,2]
[347879669,1736178649986,-639.36,0.00011368,2]
[347879670,1736178649995,-500.0,0.00011368,2]
[347879671,1736178650005,-500.0,0.00011368,2]
[347879672,1736178650014,-1555.97,0.00011368,2]
[347879673,1736178650023,-2479.94,0.00011368,2]
[347879674,1736178650033,-500.0,0.00011369,2]
[347879675,1736178650043,-283.59220328,0.00011369,2]
[347879676,1736178650052,-500.0,0.00011369,2]
[347879677,1736178650062,-500.0,0.00011369,2]
[347879678,1736178650071,-500.0,0.00011369,2]
[347879679,1736178650081,-646.57,0.00011369,2]
[347879680,1736178650090,-500.0,0.00011369,2]
[347879681,1736178650099,-500.0,0.00011369,2]
[347879682,1736178650109,-500.0,0.00011369,2]
[347879683,1736178650118,-500.0,0.00011369,2]
[347879684,1736178650127,-1922.29,0.00011369,2]
[347879685,1736178650137,-806.17,0.00011369,2]
[347879686,1736178650147,-1340.16,0.00011369,2]
[347879687,1736178650156,-634.0,0.00011375,2]
[347879688,1736178650166,-566.0,0.00011375,2]
[347879689,1736178650175,-150.0,0.00011375,2]
[347879690,1736178650184,-3766.913,0.00011375,2]
[347879691,1736178650193,-819.0,0.00011375,2]
[347879692,1736178650203,-1258.0,0.00011375,2]
[347879693,1736178650212,-183.638,0.00011375,2]
[347879694,1736178650222,-150.0,0.00011375,2]
[347879695,1736178650232,-3894.0,0.00011375,2]
[347879696,1736178650241,-168.01,0.00011404,2]
[347879697,1736178650251,-578.0,0.00011433,2]
[347879698,1736178650260,-150.0,0.00011456,2]
[347879699,1736178650270,-150.0,0.00011456,2]
[347879700,1736178650280,-1000.0,0.00011459,2]
[347879701,1736178650291,-608.94923988,0.00011466,2]
[347879702,1736178650301,-300.0,0.00011479,2]
[347879703,1736178650310,-500.0,0.00011506,2]
[347879704,1736178650319,-596.95,0.00011543,2]
[347879705,1736178650328,-500.0,0.00011543,2]
[347879706,1736178650338,-500.0,0.00011543,2]
[347879707,1736178650348,-535.97,0.00011543,2]
[347879708,1736178650357,-1011.65,0.00011543,2]
[347879709,1736178650366,-500.0,0.00011543,2]
[347879710,1736178650376,-652.92,0.00011543,2]
[347879711,1736178650386,-1464.07,0.00011543,2]
[347879712,1736178650396,-222.9107052,0.00011543,2]
[347879713,1736178650406,-772.4,0.00011543,2]
[347879714,1736178650415,-341.76,0.00011543,2]
[347879715,1736178650424,-500.0,0.00011543,2]
[347879716,1736178650435,-500.0,0.00011543,2]
[347879717,1736178650444,-500.0,0.00011543,2]
[347879718,1736178650454,-608.94923988,0.00011576,2]
[347879719,1736178650463,-839.4,0.00011639,2]
[347879720,1736178650473,-644.4,0.00011641,2]
[347879721,1736178650483,-1235.24,0.00011641,2]
[347879722,1736178650492,-500.0,0.00011641,2]
[347879723,1736178650501,-500.0,0.00011642,2]
[347879724,1736178650511,-407.537472,0.00011642,2]
[347879725,1736178650520,-157.634331,0.00011642,2]
[347879726,1736178650530,-1305.15,0.00011642,2]
[347879727,1736178650540,-605.109896,0.00011642,2]
[347879728,1736178650550,-500.0,0.00011642,2]
[347879729,1736178650559,-990.35,0.00011642,2]
[347879730,1736178650568,-639.36,0.00011642,2]
[347879731,1736178650578,-500.0,0.00011642,2]
[347879732,1736178650587,-500.0,0.00011642,2]
[347879733,1736178650596,-1555.97,0.00011642,2]
[347879734,1736178650606,-2479.94,0.00011642,2]
[347879735,1736178650615,-500.0,0.00011643,2]
[347879736,1736178650628,-500.0,0.00011643,2]
[347879737,1736178650637,-500.0,0.00011643,2]
[347879738,1736178650646,-500.0,0.00011643,2]
[347879739,1736178650656,-617.93,0.00011643,2]
[347879740,1736178650666,-500.0,0.00011643,2]
[347879741,1736178650675,-418.54835423,0.00011643,2]
[347879742,1736178650684,-288.56,0.00011643,2]
[347879743,1736178650693,-1922.29,0.00011643,2]
[347879744,1736178650702,-806.17,0.00011643,2]
[347879745,1736178650712,-1340.16,0.00011643,2]
[347879746,1736178650721,-576.431,0.0001168,2]
[347879747,1736178650730,-608.94923988,0.00011686,2]
[347879748,1736178650739,-11543.1227551,0.0001175,5]
[347879749,1736178650748,-697.96,0.00011761,2]
[347879750,1736178650757,-500.0,0.00011761,2]
[347879751,1736178650769,-500.0,0.00011761,2]
[347879752,1736178650779,-500.0,0.00011761,2]
[347879753,1736178650791,-500.0,0.00011761,2]
[347879754,1736178650800,-500.0,0.00011761,2]
[347879755,1736178650810,-1000.0,0.00011761,2]
[347879756,1736178650819,-500.0,0.00011761,2]
[347879757,1736178650828,-500.0,0.00011761,2]
[347879758,1736178650837,-751.05,0.00011761,2]
[347879759,1736178650847,-500.0,0.00011761,2]
[347879760,1736178650856,-523.00922499,0.0001178,2]
[347879761,1736178650866,-608.94923988,0.00011797,2]
[347879762,1736178650876,-200.0,0.000118,2]
[347879763,1736178650885,-596.95,0.00011817,2]
[347879764,1736178650895,-500.0,0.00011817,2]
[347879765,1736178650950,-500.0,0.00011817,2]
[347879766,1736178650960,-535.97,0.00011817,2]
[347879767,1736178650969,-1011.65,0.00011817,2]
[347879768,1736178650979,-500.0,0.00011817,2]
[347879769,1736178650988,-652.92,0.00011817,2]
[347879770,1736178650997,-1464.07,0.00011817,2]
[347879771,1736178651008,-772.4,0.00011817,2]
[347879772,1736178651017,-500.0,0.00011817,2]
[347879773,1736178651027,-500.0,0.00011817,2]
[347879774,1736178651039,-500.0,0.00011817,2]
[347879775,1736178651049,-500.0,0.00011836,2]
[347879776,1736178651058,-500.0,0.00011836,2]
[347879777,1736178651068,-500.0,0.00011836,2]
[347879778,1736178651077,-500.0,0.00011836,2]
[347879779,1736178651087,-500.0,0.00011836,2]
[347879780,1736178651095,-500.0,0.00011836,2]
[347879781,1736178651104,-500.0,0.00011836,2]
[347879782,1736178651114,-500.0,0.00011836,2]
[347879783,1736178651123,-500.0,0.00011836,2]
[347879784,1736178651132,-500.0,0.00011836,2]
[347879785,1736178651142,-500.0,0.00011836,2]
[347879786,1736178651151,-2053.56,0.00011836,2]
[347879787,1736178651161,-500.0,0.00011836,2]
[347879788,1736178651170,-500.0,0.00011836,2]
[347879789,1736178651180,-500.0,0.00011836,2]
[347879790,1736178651190,-1113.86,0.00011836,2]
[347879791,1736178651199,-433.0,0.00011857,2]
[347879792,1736178651208,-150.0,0.00011865,2]
[347879793,1736178651217,-150.0,0.00011865,2]
[347879794,1736178651227,-4889.15224319,0.00011899,3]
[347879795,1736178651236,-4834.0,0.000119,2]
[347879796,1736178651245,-100000.0,0.000119,2]
[347879797,1736178651255,-8022.5615903,0.000119,2]
[347879798,1736178651264,-1000.0,0.000119,2]
[347879799,1736178651274,-608.94923988,0.00011907,2]
[347879800,1736178651283,-1000.0,0.00011909,2]
[347879801,1736178651298,-1000.0,0.00011909,2]
[347879802,1736178651307,-1000.0,0.00011909,2]
[347879803,1736178651316,-1000.0,0.00011909,2]
[347879804,1736178651326,-1000.0,0.00011909,2]
[347879805,1736178651335,-283.22095205,0.00011909,2]
[347879806,1736178651344,-644.4,0.00011915,2]
[347879807,1736178651354,-1235.24,0.00011915,2]
[347879808,1736178651363,-500.0,0.00011915,2]
[347879809,1736178651372,-500.0,0.00011916,2]
[347879810,1736178651382,-407.537472,0.00011916,2]
[347879811,1736178651391,-1305.15,0.00011916,2]
[347879812,1736178651401,-605.109896,0.00011916,2]
[347879813,1736178651410,-500.0,0.00011916,2]
[347879814,1736178651419,-990.35,0.00011916,2]
[347879815,1736178651427,-639.36,0.00011916,2]
[347879816,1736178651437,-500.0,0.00011916,2]
[347879817,1736178651446,-500.0,0.00011916,2]
[347879818,1736178651456,-1555.97,0.00011916,2]
[347879819,1736178651466,-2479.94,0.00011916,2]
[347879820,1736178651475,-500.0,0.00011917,2]
[347879821,1736178651484,-500.0,0.00011917,2]
[347879822,1736178651493,-500.0,0.00011917,2]
[347879823,1736178651503,-586.39,0.00011917,2]
[347879824,1736178651512,-1922.29,0.00011917,2]
[347879825,1736178651522,-806.17,0.00011917,2]
[347879826,1736178651532,-1340.16,0.00011917,2]
[347879827,1736178651546,-823.0,0.0001194,2]
[347879828,1736178651555,-777.34088942,0.00011999,2]
[347879829,1736178651565,-767.31539883,0.00012,2]
[347879830,1736178651575,-5000.0,0.00012,2]
[347879831,1736178651585,-1052.0,0.00012,2]
[347879832,1736178651595,-3307.42,0.00012,2]
[347879833,1736178651605,-999.501,0.0001201,2]
[347879834,1736178651614,-608.94923988,0.00012017,2]
[347879835,1736178651624,-150.0,0.00012031,2]
[347879836,1736178651634,-186.45357894,0.00012031,2]
[347879837,1736178651644,-697.96,0.00012035,2]
[347879838,1736178651653,-500.0,0.00012035,2]
[347879839,1736178651662,-500.0,0.00012035,2]
[347879840,1736178651672,-500.0,0.00012035,2]
[347879841,1736178651681,-500.0,0.00012035,2]
[347879842,1736178651690,-500.0,0.00012035,2]
[347879843,1736178651700,-1000.0,0.00012035,2]
[347879844,1736178651710,-500.0,0.00012035,2]
[347879845,1736178651719,-500.0,0.00012035,2]
[347879846,1736178651728,-751.05,0.00012035,2]
[347879847,1736178651737,-500.0,0.00012035,2]
[347879848,1736178651747,-150.0,0.00012042,2]
[347879849,1736178651756,-150.0,0.00012047,2]
[347879850,1736178651768,-150.0,0.00012049,2]
[347879851,1736178651782,-693.3267136,0.00012053,2]
[347879852,1736178651794,-36687.46,0.00012055,2]
[347879853,1736178651803,-150.0,0.00012056,2]
[347879854,1736178651813,-150.0,0.00012061,2]
[347879855,1736178651822,-150.0,0.00012069,2]
[347879856,1736178651831,-1500.0,0.00012079,2]
[347879857,1736178651840,-596.95,0.00012091,2]
[347879858,1736178651852,-500.0,0.00012091,2]
[347879859,1736178651861,-500.0,0.00012091,2]
[347879860,1736178651871,-535.97,0.00012091,2]
[347879861,1736178651881,-1011.65,0.00012091,2]
[347879862,1736178651891,-500.0,0.00012091,2]
[347879863,1736178651899,-652.92,0.00012091,2]
[347879864,1736178651909,-1464.07,0.00012091,2]
[347879865,1736178651918,-772.4,0.00012091,2]
[347879866,1736178651928,-589.25894931,0.00012091,2]
[347879867,1736178651939,-500.0,0.00012091,2]
[347879868,1736178651948,-500.0,0.00012091,2]
[347879869,1736178651958,-150.0,0.00012094,2]
[347879870,1736178651967,-1781.65,0.000121,2]
[347879871,1736178651976,-377.20115944,0.000121,2]
[347879872,1736178651986,-420493.03441148,0.000121,2]
[347879873,1736178651995,-273.49484056,0.000121,2]
[347879874,1736178652004,-1000.0,0.000121,2]
[347879875,1736178652014,-150.0,0.00012104,2]
[347879876,1736178652023,-150.0,0.00012105,2]
[347879877,1736178652032,-500.0,0.0001211,2]
[347879878,1736178652045,-500.0,0.0001211,2]
[347879879,1736178652054,-150.0,0.0001211,2]
[347879880,1736178652064,-500.0,0.0001211,2]
[347879881,1736178652073,-500.0,0.0001211,2]
[347879882,1736178652083,-500.0,0.0001211,2]
[347879883,1736178652092,-500.0,0.0001211,2]
[347879884,1736178652101,-500.0,0.0001211,2]
[347879885,1736178652110,-500.0,0.0001211,2]
[347879886,1736178652119,-500.0,0.0001211,2]
[347879887,1736178652128,-500.0,0.0001211,2]
[347879888,1736178652138,-2053.56,0.0001211,2]
[347879889,1736178652147,-500.0,0.0001211,2]
[347879890,1736178652156,-500.0,0.0001211,2]
[347879891,1736178652165,-500.0,0.0001211,2]
[347879892,1736178652175,-1113.86,0.0001211,2]
[347879893,1736178652184,-1427.22918399,0.00012116,2]
[347879894,1736178652194,-150.0,0.00012116,2]
[347879895,1736178652203,-150.0,0.00012121,2]
[347879896,1736178652212,-150.0,0.00012124,2]
[347879897,1736178652222,-608.94923988,0.00012128,2]
[347879898,1736178652232,-150.0,0.00012129,2]
[347879899,1736178652242,-263.0,0.0001213,2]
[347879900,1736178652251,-150.0,0.00012131,2]
[347879901,1736178652261,-150.0,0.00012139,2]
[347879902,1736178652270,-300.0,0.00012152,2]
[347879903,1736178652280,-721.47694474,0.00012154,2]
[347879904,1736178652295,-150.0,0.00012157,2]
[347879905,1736178652306,-150.0,0.0001216,2]
[347879906,1736178652317,-150.0,0.00012173,2]
[347879907,1736178652326,-213.81,0.00012179,2]
[347879908,1736178652336,-150.0,0.00012182,2]
[347879909,1736178652345,-644.4,0.00012189,2]
[347879910,1736178652355,-1235.24,0.00012189,2]
[347879911,1736178652365,-500.0,0.00012189,2]
[347879912,1736178652375,-25097.87113139,0.0001219,2]
[347879913,1736178652384,-500.0,0.0001219,2]
[347879914,1736178652394,-407.537472,0.0001219,2]
[347879915,1736178652403,-1305.15,0.0001219,2]
[347879916,1736178652413,-605.109896,0.0001219,2]
[347879917,1736178652422,-500.0,0.0001219,2]
[347879918,1736178652431,-990.35,0.0001219,2]
[347879919,1736178652440,-639.36,0.0001219,2]
[347879920,1736178652450,-500.0,0.0001219,2]
[347879921,1736178652459,-500.0,0.0001219,2]
[347879922,1736178652469,-1555.97,0.0001219,2]
[347879923,1736178652479,-2479.94,0.0001219,2]
[347879924,1736178652488,-500.0,0.00012191,2]
[347879925,1736178652498,-500.0,0.00012191,2]
[347879926,1736178652507,-500.0,0.00012191,2]
[347879927,1736178652516,-1922.29,0.00012191,2]
[347879928,1736178652525,-806.17,0.00012191,2]
[347879929,1736178652535,-1340.16,0.00012191,2]
[347879930,1736178652549,-150.0,0.00012195,2]
[347879931,1736178652559,-150.0,0.00012196,2]
[347879932,1736178652569,-2000.0,0.000122,2]
[347879933,1736178652578,-2000.0,0.000122,2]
[347879934,1736178652587,-2000.0,0.000122,2]
[347879935,1736178652597,-150.0,0.000122,2]
[347879936,1736178652607,-192.18930676,0.000122,2]
[347879937,1736178652616,-1775.67154448,0.000122,2]
[347879938,1736178652625,-192.90400354,0.000122,2]
[347879939,1736178652635,-3132.52795031,0.000122,2]
[347879940,1736178652645,-1005.0,0.000122,2]
[347879941,1736178652655,-134021.32914674,0.000122,2]
[347879942,1736178652665,-1500.0,0.00012201,2]
[347879943,1736178652675,-500.0,0.00012202,2]
[347879944,1736178652684,-2000.0,0.00012202,2]
[347879945,1736178652694,-500.0,0.00012202,2]
[347879946,1736178652703,-200.0,0.00012202,2]
[347879947,1736178652713,-150.0,0.0001223,2]
[347879948,1736178652723,-608.94923988,0.00012238,2]
[347879949,1736178652732,-150.0,0.00012239,2]
[347879950,1736178652742,-150.0,0.00012247,2]
[347879951,1736178652751,-150.0,0.00012255,2]
[347879952,1736178652761,-150.0,0.00012258,2]
[347879953,1736178652771,-150.0,0.00012259,2]
[347879954,1736178652784,-150.0,0.00012259,2]
[347879955,1736178652797,-2464.0,0.00012262,2]
[347879956,1736178652807,-150.0,0.00012266,2]
[347879957,1736178652818,-150.0,0.00012266,2]
[347879958,1736178652828,-150.0,0.00012272,2]
[347879959,1736178652837,-150.0,0.00012273,2]
[347879960,1736178652847,-150.0,0.00012274,2]
[347879961,1736178652856,-150.0,0.00012274,2]
[347879962,1736178652867,-1500.0,0.00012275,2]
[347879963,1736178652876,-150.0,0.00012278,2]
[347879964,1736178652886,-150.0,0.00012278,2]
[347879965,1736178652896,-150.0,0.0001228,2]
[347879966,1736178652906,-150.0,0.0001228,2]
[347879967,1736178652915,-13738.44180309,0.00012285,2]
[347879968,1736178652925,-150.0,0.00012293,2]
[347879969,1736178652935,-503.16101319,0.00012298,2]
[347879970,1736178652944,-502.93399887,0.00012298,2]
[347879971,1736178652954,-639.77766984,0.00012298,2]
[347879972,1736178652963,-198.1377128,0.00012298,2]
[347879973,1736178652973,-500.74433136,0.00012298,2]
[347879974,1736178652982,-501.29034013,0.00012298,2]
[347879975,1736178652991,-500.21047694,0.00012298,2]
[347879976,1736178653002,-502.02745025,0.00012298,2]
[347879977,1736178653012,-206.82460446,0.00012298,2]
[347879978,1736178653021,-501.51318868,0.00012298,2]
[347879979,1736178653031,-209.32613346,0.00012298,2]
[347879980,1736178653043,-500.0,0.00012298,2]
[347879981,1736178653053,-500.32822298,0.00012298,2]